lending/lending_fUSD_20240131
["ID","MTS","AMOUNT","RATE_DAILY","PERIOD"]
[313088062,1706736653296,-536.59693933,0.0003836,7]
[313088063,1706736653307,-536.59693933,0.0003836,7]
[313088064,1706736653318,-536.59693933,0.0003836,7]
[313088065,1706736653328,-536.59693933,0.0003836,7]
[313088066,1706736653340,-536.59693933,0.0003836,7]
[313088067,1706736653351,-536.59693933,0.0003836,7]
[313088068,1706736653362,-536.59693933,0.0003836,7]
[313088069,1706736653373,-536.59693933,0.0003836,7]
[313088070,1706736653384,-536.59693933,0.0003836,7]
[313088071,1706736653395,-536.59693933,0.0003836,7]
[313088072,1706736653407,-536.59693933,0.0003836,7]
[313088073,1706736653418,-536.59693933,0.0003836,7]
[313088074,1706736653429,-536.59693933,0.0003836,7]
[313088075,1706736653439,-536.59693933,0.0003836,7]
[313088076,1706736653449,-536.59693933,0.0003836,7]
[313088077,1706736653460,-536.59693933,0.0003836,7]
[313088078,1706736653470,-536.59,0.0003836,7]
[313088079,1706736653480,-683.10063479,0.0003836,7]
[313088080,1706736653491,-683.10063479,0.0003836,7]
[313088081,1706736653501,-683.10063479,0.0003836,7]
[313088082,1706736653512,-683.10063479,0.0003836,7]
[313088083,1706736653528,-683.10063479,0.0003836,7]
[313088084,1706736653539,-683.10063479,0.0003836,7]
[313088085,1706736653549,-683.10063479,0.0003836,7]
[313088086,1706736653559,-683.10063479,0.0003836,7]
[313088087,1706736653570,-683.10063479,0.0003836,7]
[313088088,1706736653580,-683.10063479,0.0003836,7]
[313088089,1706736653591,-683.10063479,0.0003836,7]
[313088090,1706736653601,-683.10063479,0.0003836,7]
[313088091,1706736653611,-683.10063479,0.0003836,7]
[313088092,1706736653621,-683.10063479,0.0003836,7]
[313088093,1706736653631,-683.10063479,0.0003836,7]
[313088094,1706736653641,-683.10063479,0.0003836,7]
[313088095,1706736653651,-683.10063479,0.0003836,7]
[313088096,1706736653660,-683.10063479,0.0003836,7]
[313088097,1706736653669,-683.10063479,0.0003836,7]
[313088098,1706736653679,-683.1,0.0003836,7]
[313088099,1706736653688,-607.19427508,0.0003836,7]
[313088100,1706736653697,-607.19427508,0.0003836,7]
[313088101,1706736653707,-607.19427508,0.0003836,7]
[313088102,1706736653717,-607.19427508,0.0003836,7]
[313088103,1706736653727,-607.19427508,0.0003836,7]
[313088104,1706736653737,-607.19427508,0.0003836,7]
[313088105,1706736653747,-607.19427508,0.0003836,7]
[313088106,1706736653757,-607.19427508,0.0003836,7]
[313088107,1706736653767,-607.19427508,0.0003836,7]
[313088108,1706736653782,-607.19427508,0.0003836,7]
[313088109,1706736653792,-607.19427508,0.0003836,7]
[313088110,1706736653802,-607.19427508,0.0003836,7]
[313088111,1706736653812,-607.19427508,0.0003836,7]
[313088112,1706736653822,-607.19427508,0.0003836,7]
[313088113,1706736653832,-607.19427508,0.0003836,7]
[313088114,1706736653842,-607.19427508,0.0003836,7]
[313088115,1706736653852,-607.19427508,0.0003836,7]
[313088116,1706736653862,-607.19427508,0.0003836,7]
[313088117,1706736653872,-607.19427508,0.0003836,7]
[313088118,1706736653883,-607.19,0.0003836,7]
[313088119,1706736653893,-250.0,0.000384,2]
[313088120,1706736653904,-500.0,0.000384,2]
[313088121,1706736653914,-204.0,0.00038495,26]
[313088122,1706736653924,-151.0201,0.00038498,15]
[313088123,1706736653934,-4924.25499426,0.00038579,2]
[313088124,1706736653944,-1000.0,0.00038665,10]
[313088125,1706736653954,-1000.0,0.00038665,10]
[313088126,1706736653964,-500.0,0.00038666,2]
[313088127,1706736653974,-914.0,0.00038701,7]
[313088128,1706736653984,-535.0,0.00038701,7]
[313088129,1706736653994,-547.0,0.00038701,7]
[313088130,1706736654004,-700.0,0.0003877,2]
[313088131,1706736654014,-151.0201,0.00038798,15]
[313088132,1706736654026,-2010.82,0.000388,2]
[313088133,1706736654036,-1000.0,0.000388,30]
[313088134,1706736654046,-1010.89162983,0.000388,4]
[313088135,1706736654056,-1044.1805554,0.000388,2]
[313088136,1706736654066,-313.92,0.000388,2]
[313088137,1706736654076,-500.0,0.00038851,4]
[313088138,1706736654087,-1899.44302354,0.00038859,4]
[313088139,1706736654097,-500.0,0.0003886,4]
[313088140,1706736654107,-500.0,0.00038869,4]
[313088141,1706736654116,-700.0,0.0003887,2]
[313088142,1706736654126,-700.0,0.0003887,2]
[313088143,1706736654136,-12709.3102497,0.00038877,2]
[313088144,1706736654146,-500.0,0.00038878,4]
[313088145,1706736654157,-500.0,0.00038878,4]
[313088146,1706736654166,-12917.90037026,0.0003888,2]
[313088147,1706736654175,-12917.9003702,0.0003888,2]
[313088148,1706736654185,-12917.9003702,0.0003888,2]
[313088149,1706736654196,-12917.9003702,0.0003888,2]
[313088150,1706736654206,-12917.9003702,0.0003888,2]
[313088151,1706736654219,-12917.9003702,0.0003888,2]
[313088152,1706736654228,-12917.9003702,0.0003888,2]
[313088153,1706736654239,-12917.9003702,0.0003888,2]
[313088154,1706736654248,-500.0,0.00038886,4]
[313088155,1706736654258,-500.0,0.00038886,4]
[313088156,1706736654268,-4880.891328,0.00038889,5]
[313088157,1706736654279,-500.0,0.00038895,4]
[313088158,1706736654291,-500.0,0.00038895,4]
[313088159,1706736654303,-1000.0,0.000389,2]
[313088160,1706736654313,-21227.60583705,0.000389,12]
[313088161,1706736654322,-2002.88,0.000389,2]
[313088162,1706736654331,-1978.828323,0.000389,9]
[313088163,1706736654340,-3913.30748907,0.000389,9]
[313088164,1706736654350,-2999.37727767,0.00038901,2]
[313088165,1706736654360,-150.0,0.00038903,2]
[313088166,1706736654370,-195.56655507,0.00038903,2]
[313088167,1706736654380,-500.0,0.00038904,2]
[313088168,1706736654390,-509.02541318,0.00038904,5]
[313088169,1706736654400,-500.0,0.00038904,4]
[313088170,1706736654409,-500.0,0.00038904,5]
[313088171,1706736654419,-1460.59,0.00038904,5]
[313088172,1706736654429,-500.0,0.00038904,5]
[313088173,1706736654439,-553.49,0.00038904,5]
[313088174,1706736654448,-357.88,0.00038904,5]
[313088175,1706736654458,-500.0,0.00038904,2]
[313088176,1706736654467,-500.0,0.00038904,5]
[313088177,1706736654476,-500.0,0.00038904,5]
[313088178,1706736654485,-625.93,0.00038904,5]
[313088179,1706736654495,-500.0,0.00038904,5]
[313088180,1706736654504,-500.0,0.00038904,5]
[313088181,1706736654513,-500.0,0.00038904,5]
[313088182,1706736654524,-500.0,0.00038904,5]
[313088183,1706736654534,-506.03200835,0.00038904,5]
[313088184,1706736654544,-500.0,0.00038904,5]
[313088185,1706736654554,-500.09914628,0.00038904,5]
[313088186,1706736654563,-500.0,0.00038904,5]
[313088187,1706736654573,-500.0,0.00038904,2]
[313088188,1706736654583,-500.0,0.00038904,5]
[313088189,1706736654593,-496.0,0.00038904,5]
[313088190,1706736654605,-500.0,0.00038904,5]
[313088191,1706736654615,-500.0,0.00038904,5]
[313088192,1706736654626,-500.0,0.00038904,4]
[313088193,1706736654635,-637.96618107,0.00038904,2]
[313088194,1706736654645,-10000.0,0.00038904,3]
[313088195,1706736654655,-500.0,0.00038904,5]
[313088196,1706736654664,-529.6538487,0.00038904,5]
[313088197,1706736654673,-500.0,0.00038904,5]
[313088198,1706736654682,-500.0,0.00038904,5]
[313088199,1706736654692,-897.14,0.00038904,2]
[313088200,1706736654701,-500.0,0.00038904,5]
[313088201,1706736654711,-204.85847797,0.00038904,5]
[313088202,1706736654720,-500.0,0.00038904,5]
[313088203,1706736654730,-574.9,0.00038904,20]
[313088204,1706736654739,-500.0,0.00038904,5]
[313088205,1706736654749,-500.0,0.00038904,5]
[313088206,1706736654759,-571.32998778,0.00038904,5]
[313088207,1706736654771,-500.0,0.00038904,5]
[313088208,1706736654781,-1000.0,0.00038904,2]
[313088209,1706736654790,-500.0,0.00038904,2]
[313088210,1706736654800,-500.0,0.00038904,5]
[313088211,1706736654810,-500.0,0.00038904,5]
[313088212,1706736654819,-630.33,0.00038904,5]
[313088213,1706736654829,-500.0,0.00038904,5]
[313088214,1706736654839,-500.0,0.00038904,5]
[313088215,1706736654849,-500.0,0.00038904,5]
[313088216,1706736654858,-500.0,0.00038904,5]
[313088217,1706736654869,-1000.0,0.00038904,7]
[313088218,1706736655035,-234.36544824,0.00038904,5]
[313088219,1706736655046,-500.0,0.00038904,5]
[313088220,1706736655055,-500.0,0.00038904,5]
[313088221,1706736655065,-500.0,0.00038904,5]
[313088222,1706736655074,-500.0,0.00038904,5]
[313088223,1706736655083,-500.0,0.00038904,5]
[313088224,1706736655097,-379.89408109,0.00038904,5]
[313088225,1706736655107,-500.0,0.00038904,5]
[313088226,1706736655117,-500.0,0.00038904,5]
[313088227,1706736655126,-500.0,0.00038904,5]
[313088228,1706736655135,-500.0,0.00038904,5]
[313088229,1706736655144,-500.0,0.00038904,5]
[313088230,1706736655153,-500.0,0.00038904,5]
[313088231,1706736655162,-500.0,0.00038904,5]
[313088232,1706736655171,-1613.63,0.00038904,7]
[313088233,1706736655181,-827.79,0.00038904,2]
[313088234,1706736655191,-1000.0,0.00038904,7]
[313088235,1706736655201,-500.0,0.00038904,5]
[313088236,1706736655211,-500.0,0.00038904,5]
[313088237,1706736655222,-500.0,0.00038904,5]
[313088238,1706736655232,-493.38122987,0.00038904,5]
[313088239,1706736655241,-500.0,0.00038904,5]
[313088240,1706736655250,-500.0,0.00038904,5]
[313088241,1706736655260,-518.83,0.00038904,5]
[313088242,1706736655273,-667.59,0.00038904,5]
[313088243,1706736655282,-500.0,0.00038904,5]
[313088244,1706736655292,-500.0,0.00038904,5]
[313088245,1706736655301,-851.16,0.00038904,5]
[313088246,1706736655311,-500.0,0.00038904,5]
[313088247,1706736655320,-500.0,0.00038904,5]
[313088248,1706736655330,-500.0,0.00038904,5]
[313088249,1706736655339,-500.0,0.00038904,2]
[313088250,1706736655349,-500.0,0.00038904,5]
[313088251,1706736655358,-500.0,0.00038904,5]
[313088252,1706736655368,-500.0,0.00038904,5]
[313088253,1706736655377,-500.0,0.00038904,5]
[313088254,1706736655387,-500.0,0.00038904,5]
[313088255,1706736655396,-577.82,0.00038904,5]
[313088256,1706736655405,-500.0,0.00038904,5]
[313088257,1706736655414,-500.0,0.00038904,5]
[313088258,1706736655423,-500.0,0.00038904,5]
[313088259,1706736655433,-500.0,0.00038904,5]
[313088260,1706736655442,-500.0,0.00038904,5]
[313088261,1706736655451,-500.0,0.00038904,5]
[313088262,1706736655461,-500.0,0.00038904,5]
[313088263,1706736655470,-500.0,0.00038904,5]
[313088264,1706736655479,-500.0,0.00038904,5]
[313088265,1706736655488,-500.0,0.00038904,5]
[313088266,1706736655497,-500.0,0.00038904,5]
[313088267,1706736655507,-500.0,0.00038904,5]
[313088268,1706736655515,-162.51845433,0.00038904,5]
[313088269,1706736655528,-500.0,0.00038904,5]
[313088270,1706736655537,-500.0,0.00038904,5]
[313088271,1706736655546,-250.0,0.00038904,5]
[313088272,1706736655556,-500.0,0.00038904,5]
[313088273,1706736655565,-500.0,0.00038904,5]
[313088274,1706736655575,-500.0,0.00038904,5]
[313088275,1706736655584,-485.33179613,0.00038904,5]
[313088276,1706736655593,-500.0,0.00038904,5]
[313088277,1706736655602,-500.0,0.00038904,5]
[313088278,1706736655611,-500.0,0.00038904,5]
[313088279,1706736655620,-181.80031591,0.00038904,5]
[313088280,1706736655629,-500.0,0.00038904,5]
[313088281,1706736655638,-500.0,0.00038904,5]
[313088282,1706736655647,-500.0,0.00038904,5]
[313088283,1706736655655,-500.0,0.00038904,5]
[313088284,1706736655665,-500.0,0.00038904,5]
[313088285,1706736655674,-500.0,0.00038904,5]
[313088286,1706736655683,-1208.58,0.00038904,5]
[313088287,1706736655692,-574.38698624,0.00038904,5]
[313088288,1706736655701,-500.0,0.00038904,5]
[313088289,1706736655710,-500.0,0.00038904,5]
[313088290,1706736655719,-500.0,0.00038904,5]
[313088291,1706736655728,-1000.0,0.00038904,21]
[313088292,1706736655737,-500.0,0.00038904,5]
[313088293,1706736655747,-500.0,0.00038904,5]
[313088294,1706736655756,-500.0,0.00038904,5]
[313088295,1706736655766,-500.0,0.00038904,5]
[313088296,1706736655779,-549.76759004,0.00038904,5]
[313088297,1706736655788,-500.0,0.00038904,5]
[313088298,1706736655797,-500.0,0.00038904,2]
[313088299,1706736655806,-500.0,0.00038904,5]
[313088300,1706736655816,-260.68,0.00038904,5]
[313088301,1706736655825,-500.0,0.00038904,5]
[313088302,1706736655835,-500.0,0.00038904,5]
[313088303,1706736655844,-583.31,0.00038904,5]
[313088304,1706736655854,-500.0,0.00038904,5]
[313088305,1706736655864,-500.0,0.00038904,5]
[313088306,1706736655873,-500.0,0.00038904,5]
[313088307,1706736655882,-232.19009616,0.00038904,5]
[313088308,1706736655891,-500.0,0.00038904,5]
[313088309,1706736655900,-500.0,0.00038904,5]
[313088310,1706736655910,-1528.21,0.00038904,5]
[313088311,1706736655919,-515.39,0.00038904,5]
[313088312,1706736655928,-500.0,0.00038904,5]
[313088313,1706736655938,-500.0,0.00038904,5]
[313088314,1706736655947,-500.0,0.00038904,5]
[313088315,1706736655957,-547.57324961,0.00038904,5]
[313088316,1706736655966,-680.82,0.00038904,5]
[313088317,1706736655975,-500.0,0.00038904,5]
[313088318,1706736655984,-585.71,0.00038904,2]
[313088319,1706736655993,-500.0,0.00038904,5]
[313088320,1706736656003,-165.27,0.00038904,5]
[313088321,1706736656012,-500.0,0.00038904,5]
[313088322,1706736656025,-573.78,0.00038904,5]
[313088323,1706736656034,-500.0,0.00038904,5]
[313088324,1706736656044,-500.0,0.00038904,5]
[313088325,1706736656053,-500.0,0.00038904,5]
[313088326,1706736656062,-3275.23,0.00038904,5]
[313088327,1706736656072,-500.0,0.00038904,5]
[313088328,1706736656081,-500.0,0.00038904,5]
[313088329,1706736656091,-500.0,0.00038904,5]
[313088330,1706736656100,-500.0,0.00038904,5]
[313088331,1706736656109,-500.0,0.00038904,5]
[313088332,1706736656118,-500.0,0.00038904,5]
[313088333,1706736656127,-1261.55,0.00038904,5]
[313088334,1706736656136,-189.45610519,0.00038904,5]
[313088335,1706736656145,-500.0,0.00038904,5]
[313088336,1706736656154,-500.0,0.00038904,5]
[313088337,1706736656164,-500.0,0.00038904,5]
[313088338,1706736656173,-500.0,0.00038904,5]
[313088339,1706736656182,-1056.79,0.00038904,5]
[313088340,1706736656193,-794.7,0.00038904,5]
[313088341,1706736656204,-500.0,0.00038904,5]
[313088342,1706736656213,-5284.67,0.00038904,5]
[313088343,1706736656223,-548.14111269,0.00038904,5]
[313088344,1706736656232,-500.0,0.00038904,5]
[313088345,1706736656243,-672.7,0.00038904,5]
[313088346,1706736656253,-500.0,0.00038904,5]
[313088347,1706736656262,-1126.15,0.00038904,5]
[313088348,1706736656276,-500.0,0.00038904,5]
[313088349,1706736656286,-500.0,0.00038904,5]
[313088350,1706736656296,-524.81,0.00038904,5]
[313088351,1706736656305,-1000.0,0.00038904,7]
[313088352,1706736656315,-500.0,0.00038904,5]
[313088353,1706736656325,-584.9,0.00038904,5]
[313088354,1706736656334,-651.12,0.00038904,5]
[313088355,1706736656344,-507.27,0.00038904,5]
[313088356,1706736656353,-500.0,0.00038904,5]
[313088357,1706736656363,-1698.73,0.00038904,5]
[313088358,1706736656372,-500.0,0.00038904,5]
[313088359,1706736656382,-608.75,0.00038904,5]
[313088360,1706736656391,-500.0,0.00038904,5]
[313088361,1706736656400,-605.81,0.00038904,5]
[313088362,1706736656410,-678.92,0.00038904,5]
[313088363,1706736656419,-272.63,0.00038904,5]
[313088364,1706736656429,-500.0,0.00038904,5]
[313088365,1706736656438,-977.32,0.00038904,5]
[313088366,1706736656447,-500.0,0.00038904,5]
[313088367,1706736656456,-1315.53,0.00038904,5]
[313088368,1706736656466,-1687.18,0.00038904,5]
[313088369,1706736656475,-500.0,0.00038904,5]
[313088370,1706736656483,-500.0,0.00038904,5]
[313088371,1706736656492,-498.94006,0.00038904,5]
[313088372,1706736656501,-500.0,0.00038904,5]
[313088373,1706736656510,-500.0,0.00038904,5]
[313088374,1706736656519,-1511.96,0.00038904,5]
[313088375,1706736656534,-500.0,0.00038904,5]
[313088376,1706736656543,-1466.44,0.00038904,5]
[313088377,1706736656552,-500.0,0.00038904,5]
[313088378,1706736656561,-500.0,0.00038904,5]
[313088379,1706736656571,-1262.64,0.00038904,5]
[313088380,1706736656581,-1686.6,0.00038904,5]
[313088381,1706736656590,-1759.87,0.00038904,5]
[313088382,1706736656599,-500.0,0.00038904,5]
[313088383,1706736656608,-796.91,0.00038904,5]
[313088384,1706736656617,-333.06958436,0.00038904,5]
[313088385,1706736656627,-500.0,0.00038904,5]
[313088386,1706736656635,-500.0,0.00038904,5]
[313088387,1706736656645,-500.0,0.00038904,10]
[313088388,1706736656654,-500.0,0.00038904,5]
[313088389,1706736656663,-529.4,0.00038904,5]
[313088390,1706736656672,-662.47,0.00038904,5]
[313088391,1706736656681,-3011.45,0.00038904,5]
[313088392,1706736656691,-902.1,0.00038904,5]
[313088393,1706736656700,-500.0,0.00038904,5]
[313088394,1706736656709,-500.0,0.00038904,5]
[313088395,1706736656718,-812.18,0.00038904,5]
[313088396,1706736656727,-500.0,0.00038904,5]
[313088397,1706736656737,-500.0,0.00038904,5]
[313088398,1706736656746,-742.82,0.00038904,5]
[313088399,1706736656755,-1136.51,0.00038904,5]
[313088400,1706736656764,-928.46,0.00038904,5]
[313088401,1706736656778,-638.32,0.00038904,5]
[313088402,1706736656787,-914.58,0.00038904,5]
[313088403,1706736656796,-500.0,0.00038904,5]
[313088404,1706736656806,-682.55,0.00038904,5]
[313088405,1706736656815,-1957.6,0.00038904,5]
[313088406,1706736656824,-500.0,0.00038904,5]
[313088407,1706736656835,-1785.32,0.00038904,5]
[313088408,1706736656844,-500.0,0.00038904,5]
[313088409,1706736656853,-729.97,0.00038904,5]
[313088410,1706736656863,-500.0,0.00038904,5]
[313088411,1706736656873,-652.82,0.00038904,5]
[313088412,1706736656882,-963.87,0.00038904,5]
[313088413,1706736656891,-458.44,0.00038904,5]
[313088414,1706736656901,-500.0,0.00038904,5]
[313088415,1706736656911,-500.0,0.00038904,5]
[313088416,1706736656920,-587.33,0.00038904,5]
[313088417,1706736656930,-540.51,0.00038904,5]
[313088418,1706736656940,-500.0,0.00038904,5]
[313088419,1706736656950,-1505.83,0.00038904,5]
[313088420,1706736656959,-1344.23,0.00038904,5]
[313088421,1706736656969,-715.02,0.00038904,5]
[313088422,1706736656978,-823.24,0.00038904,5]
[313088423,1706736656987,-3815.84,0.00038904,5]
[313088424,1706736656998,-500.0,0.00038904,5]
[313088425,1706736657007,-500.0,0.00038904,5]
[313088426,1706736657016,-533.75,0.00038904,5]
[313088427,1706736657031,-401.82,0.00038904,5]
[313088428,1706736657040,-500.0,0.00038904,5]
[313088429,1706736657049,-601.94,0.00038904,5]
[313088430,1706736657059,-500.0,0.00038904,5]
[313088431,1706736657068,-2237.3,0.00038904,5]
[313088432,1706736657078,-500.0,0.00038904,5]
[313088433,1706736657088,-789.41,0.00038904,5]
[313088434,1706736657097,-500.0,0.00038904,5]
[313088435,1706736657106,-602.67878357,0.00038904,5]
[313088436,1706736657116,-651.31,0.00038904,5]
[313088437,1706736657125,-719.21,0.00038904,5]
[313088438,1706736657134,-1657.29,0.00038904,5]
[313088439,1706736657143,-500.0,0.00038904,5]
[313088440,1706736657152,-812.12,0.00038904,5]
[313088441,1706736657161,-500.0,0.00038904,5]
[313088442,1706736657171,-1780.38,0.00038904,5]
[313088443,1706736657180,-500.0,0.00038904,5]
[313088444,1706736657189,-500.0,0.00038904,5]
[313088445,1706736657199,-500.0,0.00038904,5]
[313088446,1706736657208,-652.83,0.00038904,5]
[313088447,1706736657221,-422.61528376,0.00038904,5]
[313088448,1706736657230,-500.0,0.00038904,5]
[313088449,1706736657240,-500.0,0.00038904,5]
[313088450,1706736657249,-791.3,0.00038904,5]
[313088451,1706736657258,-500.0,0.00038904,5]
[313088452,1706736657267,-849.04,0.00038904,5]
[313088453,1706736657280,-1524.13,0.00038904,5]
[313088454,1706736657291,-585.29288815,0.00038904,5]
[313088455,1706736657300,-2731.97,0.00038904,5]
[313088456,1706736657309,-500.0,0.00038904,5]
[313088457,1706736657317,-1537.1,0.00038904,5]
[313088458,1706736657326,-571.63,0.00038904,5]
[313088459,1706736657335,-500.0,0.00038904,5]
[313088460,1706736657344,-640.29,0.00038904,5]
[313088461,1706736657354,-500.0,0.00038904,5]
[313088462,1706736657363,-500.0,0.00038904,5]
[313088463,1706736657372,-700.08,0.00038904,5]
[313088464,1706736657382,-20006.34,0.00038904,5]
[313088465,1706736657391,-726.47,0.00038904,5]
[313088466,1706736657400,-510.24,0.00038904,5]
[313088467,1706736657409,-500.0,0.00038904,5]
[313088468,1706736657418,-500.0,0.00038904,5]
[313088469,1706736657427,-948.65,0.00038904,5]
[313088470,1706736657436,-581.17,0.00038904,5]
[313088471,1706736657445,-800.64,0.00038904,5]
[313088472,1706736657454,-500.0,0.00038904,5]
[313088473,1706736657463,-500.0,0.00038904,5]
[313088474,1706736657472,-500.0,0.00038904,5]
[313088475,1706736657481,-500.0,0.00038904,5]
[313088476,1706736657490,-500.0,0.00038904,5]
[313088477,1706736657499,-500.0,0.00038904,5]
[313088478,1706736657508,-500.0,0.00038904,5]
[313088479,1706736657517,-567.51,0.00038904,5]
[313088480,1706736657528,-500.0,0.00038904,5]
[313088481,1706736657538,-500.0,0.00038904,5]
[313088482,1706736657547,-500.0,0.00038904,5]
[313088483,1706736657557,-1484.95,0.00038904,5]
[313088484,1706736657566,-500.0,0.00038904,5]
[313088485,1706736657575,-500.0,0.00038904,5]
[313088486,1706736657585,-1619.55,0.00038904,5]
[313088487,1706736657594,-500.0,0.00038904,5]
[313088488,1706736657602,-604.26,0.00038904,5]
[313088489,1706736657611,-791.85,0.00038904,5]
[313088490,1706736657620,-500.0,0.00038904,5]
[313088491,1706736657630,-679.29,0.00038904,2]
[313088492,1706736657639,-862.32,0.00038904,5]
[313088493,1706736657648,-500.0,0.00038904,5]
[313088494,1706736657656,-500.0,0.00038904,5]
[313088495,1706736657665,-500.0,0.00038904,5]
[313088496,1706736657674,-500.0,0.00038904,5]
[313088497,1706736657684,-3247.43,0.00038904,5]
[313088498,1706736657693,-2628.35,0.00038904,5]
[313088499,1706736657702,-500.0,0.00038904,5]
[313088500,1706736657711,-1000.23,0.00038904,5]
[313088501,1706736657720,-500.0,0.00038904,5]
[313088502,1706736657729,-500.0,0.00038904,5]
[313088503,1706736657739,-1155.57,0.00038904,5]
[313088504,1706736657748,-678.92,0.00038904,5]
[313088505,1706736657757,-500.0,0.00038904,5]
[313088506,1706736657767,-500.0,0.00038904,5]
[313088507,1706736657779,-1333.1,0.00038904,5]
[313088508,1706736657788,-1036.02,0.00038904,5]
[313088509,1706736657797,-500.0,0.00038904,5]
[313088510,1706736657807,-509.62,0.00038904,5]
[313088511,1706736657816,-337.20053075,0.00038904,5]
[313088512,1706736657826,-590.03,0.00038904,5]
[313088513,1706736657836,-500.0,0.00038904,5]
[313088514,1706736657845,-500.0,0.00038904,5]
[313088515,1706736657855,-160.19,0.00038904,2]
[313088516,1706736657864,-700.0,0.0003897,2]
[313088517,1706736657873,-700.0,0.0003897,2]
[313088518,1706736657882,-403.72583205,0.0003898,2]
[313088519,1706736657891,-200.0,0.00038987,2]
[313088520,1706736657901,-204.0,0.0003899,2]
[313088521,1706736657910,-210.0,0.0003899,2]
[313088522,1706736657919,-155.26893206,0.00038997,4]
[313088523,1706736657928,-100000.0,0.00039,9]
[313088524,1706736657937,-5242.25601426,0.00039,3]
[313088525,1706736657947,-264.24048328,0.00039,4]
[313088526,1706736657956,-617.02241424,0.00039,2]
[313088527,1706736657965,-116807.24274214,0.00039,2]
[313088528,1706736657974,-318.52557904,0.00039,40]
[313088529,1706736657983,-168.84,0.00039,7]
[313088530,1706736657992,-155.0,0.00039,30]
[313088531,1706736658003,-2500.0,0.00039,2]
[313088532,1706736658013,-241.33571683,0.00039,4]
[313088533,1706736658024,-19350.0,0.00039,2]
[313088534,1706736658033,-977.65031248,0.00039,4]
[313088535,1706736658043,-600.0,0.00039,40]
[313088536,1706736658053,-1579.22959257,0.00039,3]
[313088537,1706736658062,-222035.64113149,0.00039,2]
[313088538,1706736658072,-1593.31,0.00039,7]
[313088539,1706736658081,-1400.0,0.00039,14]
[313088540,1706736658090,-1283.75,0.00039,2]
[313088541,1706736658100,-5050.18100773,0.00039,7]
[313088542,1706736658109,-3000.0,0.00039,24]
[313088543,1706736658118,-700.0,0.00039,3]
[313088544,1706736658128,-151.0,0.00039,2]
[313088545,1706736658138,-3000.0,0.0003901,24]
[313088546,1706736658147,-5525.855113,0.0003902,24]
[313088547,1706736658156,-914.0,0.00039046,7]
[313088548,1706736658166,-535.0,0.00039046,7]
[313088549,1706736658175,-547.0,0.00039046,7]
[313088550,1706736658186,-500.0,0.00039094,7]
[313088551,1706736658198,-210.0,0.0003914,2]
[313088552,1706736658208,-308.31891423,0.0003917,2]
[313088553,1706736658219,-151.0201,0.00039198,16]
[313088554,1706736658229,-313.92,0.000392,2]
[313088555,1706736658238,-1000.0,0.0003926,2]
[313088556,1706736658247,-300.0,0.000393,7]
[313088557,1706736658256,-914.0,0.00039392,7]
[313088558,1706736658266,-535.0,0.00039392,7]
[313088559,1706736658279,-547.0,0.00039392,7]
[313088560,1706736658289,-500.0,0.00039452,2]
[313088561,1706736658300,-1460.59,0.00039452,5]